[Event "Titled Tuesday Blitz September 28 2021"]
[White "Navalgund, Niranjan"]
[Black "Aghasiyev, Kamal"]
[WhiteFideId "5030854"]
[BlackFideId "13402854"]
[WhiteElo "2290"]
[BlackElo "2210"]
[Result "0-1"]
[Round "07"]
[TimeControl "180+1"]
[Date "2021.09.28"]
[WhiteClock "0:00:13"]
[BlackClock "0:00:13"]

1. d4 {[%clk 0:02:40]}  d5 {[%clk 0:02:59]} 2. Nf3 {[%clk 0:02:41]}  Nf6 {[%clk 0:02:58]} 3. c4 {[%clk 0:02:41]}  e6 {[%clk 0:02:58]} 4. g3 {[%clk 0:02:41]}  dxc4 {[%clk 0:02:54]} 5. Bg2 {[%clk 0:02:42]}  a6 {[%clk 0:02:53]} 6. O-O {[%clk 0:02:43]}  Nc6 {[%clk 0:02:53]} 7. e3 {[%clk 0:02:41]}  Rb8 {[%clk 0:02:51]} 8. Qe2 {[%clk 0:02:39]}  b5 {[%clk 0:02:45]} 9. b3 {[%clk 0:02:39]}  cxb3 {[%clk 0:02:32]} 10. axb3 {[%clk 0:02:40]}  Bb7 {[%clk 0:02:27]} 11. Bd2 {[%clk 0:02:35]}  Be7 {[%clk 0:02:12]} 12. Rc1 {[%clk 0:02:34]}  O-O {[%clk 0:02:09]} 13. Na3 {[%clk 0:02:33]}  Nb4 {[%clk 0:02:03]} 14. Nc2 {[%clk 0:02:32]}  c5 {[%clk 0:01:41]} 15. dxc5 {[%clk 0:02:14]}  Nd3 {[%clk 0:01:09]} 16. Rd1 {[%clk 0:02:14]}  Nxc5 {[%clk 0:01:02]} 17. Ba5 {[%clk 0:02:08]}  Qe8 {[%clk 0:01:00]} 18. Ncd4 {[%clk 0:02:04]}  Bd5 {[%clk 0:00:38]} 19. b4 {[%clk 0:01:51]}  Na4 {[%clk 0:00:36]} 20. Rac1 {[%clk 0:01:50]}  Ne4 {[%clk 0:00:36]} 21. Ne5 {[%clk 0:01:44]}  Nac3 {[%clk 0:00:29]} 22. Qd3 {[%clk 0:01:43]}  Nxd1 {[%clk 0:00:24]} 23. Bxe4 {[%clk 0:01:42]}  Bxe4 {[%clk 0:00:18]} 24. Qxe4 {[%clk 0:01:42]}  Nb2 {[%clk 0:00:16]} 25. Bc7 {[%clk 0:00:47]}  Rc8 {[%clk 0:00:15]} 26. Qb7 {[%clk 0:00:41]}  Bf6 {[%clk 0:00:15]} 27. Rc6 {[%clk 0:00:33]}  Bxe5 {[%clk 0:00:14]} 28. Bxe5 {[%clk 0:00:33]}  Nc4 {[%clk 0:00:13]} 29. Bc7 {[%clk 0:00:17]}  g6 {[%clk 0:00:07]} 30. g4 {[%clk 0:00:06]}  e5 {[%clk 0:00:07]} 31. Nf3 {[%clk 0:00:06]}  Qd7 {[%clk 0:00:07]} 32. Ng5 {[%clk 0:00:06]}  Qxg4+ {[%clk 0:00:06]} 33. Kf1 {[%clk 0:00:06]}  Qxg5 {[%clk 0:00:06]} 34. Rxa6 {[%clk 0:00:07]}  Qf5 {[%clk 0:00:05]} 35. Rc6 {[%clk 0:00:07]}  Qb1+ {[%clk 0:00:03]} 36. Kg2 {[%clk 0:00:06]}  Qe4+ {[%clk 0:00:04]} 37. Kf1 {[%clk 0:00:07]}  Qh1+ {[%clk 0:00:04]} 38. Ke2 {[%clk 0:00:07]}  e4 {[%clk 0:00:04]} 39. Qxb5 {[%clk 0:00:07]}  Qf3+ {[%clk 0:00:04]} 40. Ke1 {[%clk 0:00:07]}  Nb2 {[%clk 0:00:04]} 41. Qe2 {[%clk 0:00:06]}  Nd3+ {[%clk 0:00:04]} 42. Kd2 {[%clk 0:00:06]}  Qxf2 {[%clk 0:00:04]} 43. b5 {[%clk 0:00:06]}  Qxe2+ {[%clk 0:00:04]} 44. Kxe2 {[%clk 0:00:07]}  Nb4 {[%clk 0:00:04]} 45. Rc4 {[%clk 0:00:07]}  Nd5 {[%clk 0:00:04]} 46. b6 {[%clk 0:00:07]}  Nxb6 {[%clk 0:00:05]} 47. Bxb6 {[%clk 0:00:06]}  Rxc4 {[%clk 0:00:04]} 48. Bd4 {[%clk 0:00:07]}  Rfc8 {[%clk 0:00:05]} 49. Kf2 {[%clk 0:00:08]}  f5 {[%clk 0:00:05]} 50. Kg3 {[%clk 0:00:08]}  Kf7 {[%clk 0:00:06]} 51. Kf4 {[%clk 0:00:09]}  Rxd4 {[%clk 0:00:07]} 52. exd4 {[%clk 0:00:09]}  Re8 {[%clk 0:00:08]} 53. Ke3 {[%clk 0:00:10]}  Ke6 {[%clk 0:00:08]} 54. Kf4 {[%clk 0:00:10]}  Kd5 {[%clk 0:00:09]} 55. Ke3 {[%clk 0:00:11]}  g5 {[%clk 0:00:09]} 56. h3 {[%clk 0:00:11]}  f4+ {[%clk 0:00:10]} 57. Ke2 {[%clk 0:00:11]}  Kxd4 {[%clk 0:00:11]} 58. Kf2 {[%clk 0:00:12]}  e3+ {[%clk 0:00:11]} 59. Ke2 {[%clk 0:00:13]}  Ke4 {[%clk 0:00:12]} 60. h4 {[%clk 0:00:13]}  f3+ {[%clk 0:00:12]} 61. Ke1 {[%clk 0:00:13]}  g4 {[%clk 0:00:13]} 62. h5 {[%clk 0:00:13]}  Rd8 {[%clk 0:00:13]} 63. h6 {[%clk 0:00:13]}  g3 {[%clk 0:00:13]} 0-1


[Site "https://www.chess.com"]

[Event "Titled Tuesday Blitz September 28 2021"]
[White "Okike, David"]
[Black "Maksimenko, Viktor"]
[WhiteFideId "8500134"]
[BlackFideId "13710478"]
[WhiteElo "2232"]
[BlackElo "2269"]
[Result "0-1"]
[Round "07"]
[TimeControl "180+1"]
[Date "2021.09.28"]
[WhiteClock "0:00:37"]
[BlackClock "0:01:05"]

1. e4 {[%clk 0:03:00]}  c6 {[%clk 0:02:58]} 2. d4 {[%clk 0:02:59]}  d5 {[%clk 0:02:59]} 3. e5 {[%clk 0:03:00]}  Bf5 {[%clk 0:02:58]} 4. h4 {[%clk 0:02:55]}  h5 {[%clk 0:02:58]} 5. c4 {[%clk 0:02:55]}  e6 {[%clk 0:02:58]} 6. Nc3 {[%clk 0:02:55]}  Bb4 {[%clk 0:02:58]} 7. Qb3 {[%clk 0:02:45]}  a5 {[%clk 0:02:58]} 8. a3 {[%clk 0:02:44]}  dxc4 {[%clk 0:02:58]} 9. Bxc4 {[%clk 0:02:37]}  Bxc3+ {[%clk 0:02:58]} 10. bxc3 {[%clk 0:02:37]}  b5 {[%clk 0:02:58]} 11. Be2 {[%clk 0:02:36]}  a4 {[%clk 0:02:59]} 12. Qd1 {[%clk 0:02:34]}  Qd5 {[%clk 0:02:56]} 13. Bf3 {[%clk 0:02:33]}  Qb3 {[%clk 0:02:56]} 14. Bd2 {[%clk 0:02:18]}  Qxd1+ {[%clk 0:02:53]} 15. Bxd1 {[%clk 0:02:16]}  Ne7 {[%clk 0:02:51]} 16. Nh3 {[%clk 0:02:15]}  Nd5 {[%clk 0:02:33]} 17. Nf4 {[%clk 0:02:15]}  Nxf4 {[%clk 0:02:33]} 18. Bxf4 {[%clk 0:02:15]}  Nd7 {[%clk 0:02:33]} 19. Bf3 {[%clk 0:02:14]}  Rc8 {[%clk 0:02:32]} 20. Ke2 {[%clk 0:02:04]}  Nb6 {[%clk 0:02:32]} 21. Ra2 {[%clk 0:02:03]}  Kd7 {[%clk 0:02:31]} 22. Rc1 {[%clk 0:02:01]}  Nc4 {[%clk 0:02:31]} 23. Ke1 {[%clk 0:01:55]}  Bg4 {[%clk 0:02:31]} 24. Be4 {[%clk 0:01:54]}  Bf5 {[%clk 0:02:27]} 25. Bf3 {[%clk 0:01:54]}  f6 {[%clk 0:02:23]} 26. Be2 {[%clk 0:01:53]}  Nb6 {[%clk 0:02:23]} 27. c4 {[%clk 0:01:48]}  bxc4 {[%clk 0:02:21]} 28. Bxc4 {[%clk 0:01:48]}  Nd5 {[%clk 0:02:19]} 29. Bd2 {[%clk 0:01:46]}  fxe5 {[%clk 0:02:13]} 30. dxe5 {[%clk 0:01:46]}  Rb8 {[%clk 0:02:13]} 31. Ke2 {[%clk 0:01:40]}  Rb7 {[%clk 0:02:06]} 32. Bd3 {[%clk 0:01:36]}  Bxd3+ {[%clk 0:02:03]} 33. Kxd3 {[%clk 0:01:37]}  Rb3+ {[%clk 0:02:03]} 34. Ke2 {[%clk 0:01:36]}  Rhb8 {[%clk 0:02:03]} 35. Rac2 {[%clk 0:01:35]}  R8b6 {[%clk 0:01:58]} 36. Ra1 {[%clk 0:01:29]}  g6 {[%clk 0:01:52]} 37. Rc4 {[%clk 0:01:29]}  Ra6 {[%clk 0:01:52]} 38. g3 {[%clk 0:01:26]}  Rb5 {[%clk 0:01:46]} 39. Rac1 {[%clk 0:01:23]}  Rb3 {[%clk 0:01:45]} 40. Ra1 {[%clk 0:01:22]}  Kc7 {[%clk 0:01:42]} 41. g4 {[%clk 0:01:19]}  Rb2 {[%clk 0:01:26]} 42. gxh5 {[%clk 0:01:16]}  gxh5 {[%clk 0:01:27]} 43. Kd3 {[%clk 0:01:16]}  Kb6 {[%clk 0:01:21]} 44. Rg1 {[%clk 0:01:10]}  Rb3+ {[%clk 0:01:16]} 45. Kc2 {[%clk 0:01:05]}  Kb5 {[%clk 0:01:16]} 46. Re4 {[%clk 0:01:00]}  Rxa3 {[%clk 0:01:16]} 47. Rb1+ {[%clk 0:00:59]}  Rb3 {[%clk 0:01:15]} 48. Rxb3+ {[%clk 0:00:59]}  axb3+ {[%clk 0:01:16]} 49. Kxb3 {[%clk 0:00:59]}  c5 {[%clk 0:01:16]} 50. Kb2 {[%clk 0:00:52]}  c4 {[%clk 0:01:16]} 51. f4 {[%clk 0:00:49]}  Kc5 {[%clk 0:01:07]} 52. Bc3 {[%clk 0:00:42]}  Ra2+ {[%clk 0:01:06]} 53. Kxa2 {[%clk 0:00:38]}  Nxc3+ {[%clk 0:01:05]} 54. Kb2 {[%clk 0:00:37]}  Nxe4 {[%clk 0:01:06]} 55. Kc2 {[%clk 0:00:37]}  Ng3 {[%clk 0:01:05]} 0-1


[Site "https://www.chess.com"]

[Event "Titled Tuesday Blitz September 28 2021"]
[White "Oparin, Grigoriy"]
[Black "Tsydypov, Zhamsaran"]
[WhiteFideId "24125890"]
[BlackFideId "4108566"]
[WhiteElo "2916"]
[BlackElo "2976"]
[Result "1-0"]
[Round "07"]
[TimeControl "180+1"]
[Date "2021.09.28"]
[WhiteClock "0:01:29"]
[BlackClock "0:00:53"]

1. Nf3 {[%clk 0:03:00]}  Nf6 {[%clk 0:02:58]} 2. g3 {[%clk 0:03:01]}  g6 {[%clk 0:02:57]} 3. Bg2 {[%clk 0:03:02]}  Bg7 {[%clk 0:02:57]} 4. c4 {[%clk 0:03:03]}  O-O {[%clk 0:02:58]} 5. Nc3 {[%clk 0:03:03]}  d6 {[%clk 0:02:58]} 6. d4 {[%clk 0:03:04]}  Nbd7 {[%clk 0:02:58]} 7. O-O {[%clk 0:03:04]}  a6 {[%clk 0:02:58]} 8. e4 {[%clk 0:03:04]}  e5 {[%clk 0:02:58]} 9. Qc2 {[%clk 0:03:04]}  Rb8 {[%clk 0:02:57]} 10. Rd1 {[%clk 0:03:03]}  Qe7 {[%clk 0:02:55]} 11. Bg5 {[%clk 0:02:54]}  h6 {[%clk 0:02:43]} 12. Nd5 {[%clk 0:02:54]}  Qd8 {[%clk 0:02:43]} 13. Bxf6 {[%clk 0:02:52]}  Bxf6 {[%clk 0:02:41]} 14. c5 {[%clk 0:02:43]}  exd4 {[%clk 0:02:39]} 15. cxd6 {[%clk 0:02:43]}  cxd6 {[%clk 0:02:38]} 16. Nxf6+ {[%clk 0:02:41]}  Nxf6 {[%clk 0:02:34]} 17. Rxd4 {[%clk 0:02:42]}  Qe7 {[%clk 0:02:27]} 18. Qd2 {[%clk 0:02:42]}  Kg7 {[%clk 0:02:21]} 19. Re1 {[%clk 0:02:42]}  Be6 {[%clk 0:02:21]} 20. Rxd6 {[%clk 0:02:40]}  Bxa2 {[%clk 0:02:20]} 21. e5 {[%clk 0:02:39]}  Ne8 {[%clk 0:02:03]} 22. Rd7 {[%clk 0:02:39]}  Qe6 {[%clk 0:02:03]} 23. h4 {[%clk 0:02:24]}  Bc4 {[%clk 0:02:00]} 24. h5 {[%clk 0:01:58]}  Bb5 {[%clk 0:01:59]} 25. Rd4 {[%clk 0:01:54]}  g5 {[%clk 0:01:56]} 26. Rde4 {[%clk 0:01:54]}  Qb6 {[%clk 0:01:43]} 27. Nd4 {[%clk 0:01:51]}  Kh8 {[%clk 0:01:37]} 28. Nf5 {[%clk 0:01:49]}  Ng7 {[%clk 0:01:27]} 29. Nxg7 {[%clk 0:01:46]}  Kxg7 {[%clk 0:01:26]} 30. e6 {[%clk 0:01:46]}  Bc6 {[%clk 0:01:23]} 31. Qc3+ {[%clk 0:01:43]}  Kg8 {[%clk 0:01:18]} 32. e7 {[%clk 0:01:33]}  Rfe8 {[%clk 0:01:14]} 33. Qf6 {[%clk 0:01:34]}  Qc7 {[%clk 0:00:53]} 34. Re5 {[%clk 0:01:29]}  Bxg2 {[%clk 0:00:53]} 35. Qxh6 {[%clk 0:01:29]} 1-0


[Site "https://www.chess.com"]

[Event "Titled Tuesday Blitz September 28 2021"]
[White "Paltrinieri, Nicholas"]
[Black "Bologan, Victor"]
[WhiteFideId "828262"]
[BlackFideId "13900048"]
[WhiteElo "2254"]
[BlackElo "2511"]
[Result "0-1"]
[Round "07"]
[TimeControl "180+1"]
[Date "2021.09.28"]
[WhiteClock "0:00:11"]
[BlackClock "0:00:49"]

1. d4 {[%clk 0:02:55]}  Nf6 {[%clk 0:02:59]} 2. Bg5 {[%clk 0:02:55]}  e6 {[%clk 0:02:58]} 3. e4 {[%clk 0:02:54]}  c5 {[%clk 0:02:58]} 4. d5 {[%clk 0:02:45]}  h6 {[%clk 0:02:53]} 5. Bxf6 {[%clk 0:02:43]}  Qxf6 {[%clk 0:02:53]} 6. Nc3 {[%clk 0:02:44]}  a6 {[%clk 0:02:53]} 7. Nf3 {[%clk 0:02:43]}  e5 {[%clk 0:02:52]} 8. a4 {[%clk 0:02:41]}  d6 {[%clk 0:02:52]} 9. Be2 {[%clk 0:02:40]}  Be7 {[%clk 0:02:49]} 10. Nd2 {[%clk 0:02:41]}  O-O {[%clk 0:02:47]} 11. Nc4 {[%clk 0:02:42]}  Nd7 {[%clk 0:02:42]} 12. a5 {[%clk 0:02:42]}  Bd8 {[%clk 0:02:32]} 13. O-O {[%clk 0:02:40]}  Bc7 {[%clk 0:02:32]} 14. Na4 {[%clk 0:02:30]}  Qd8 {[%clk 0:02:30]} 15. Qd2 {[%clk 0:02:28]}  Nf6 {[%clk 0:02:26]} 16. Nab6 {[%clk 0:02:26]}  Bxb6 {[%clk 0:02:23]} 17. Nxb6 {[%clk 0:02:22]}  Rb8 {[%clk 0:02:23]} 18. f3 {[%clk 0:02:19]}  Nh5 {[%clk 0:02:22]} 19. b4 {[%clk 0:02:19]}  cxb4 {[%clk 0:02:17]} 20. Qxb4 {[%clk 0:02:18]}  Nf4 {[%clk 0:02:17]} 21. Rf2 {[%clk 0:02:06]}  f5 {[%clk 0:02:14]} 22. Bf1 {[%clk 0:01:58]}  fxe4 {[%clk 0:02:04]} 23. fxe4 {[%clk 0:01:59]}  Bg4 {[%clk 0:02:02]} 24. c4 {[%clk 0:01:56]}  Qg5 {[%clk 0:01:42]} 25. Kh1 {[%clk 0:01:48]}  Nh3 {[%clk 0:01:38]} 26. gxh3 {[%clk 0:00:55]}  Rxf2 {[%clk 0:01:35]} 27. hxg4 {[%clk 0:00:55]}  Qxg4 {[%clk 0:01:35]} 28. Qxd6 {[%clk 0:00:48]}  Rbf8 {[%clk 0:01:06]} 29. Qe6+ {[%clk 0:00:33]}  Qxe6 {[%clk 0:01:04]} 30. dxe6 {[%clk 0:00:34]}  Rxf1+ {[%clk 0:01:03]} 31. Rxf1 {[%clk 0:00:35]}  Rxf1+ {[%clk 0:01:03]} 32. Kg2 {[%clk 0:00:36]}  Rf6 {[%clk 0:00:51]} 33. e7 {[%clk 0:00:17]}  Kf7 {[%clk 0:00:50]} 34. c5 {[%clk 0:00:11]}  Rc6 {[%clk 0:00:49]} 0-1


[Site "https://www.chess.com"]

[Event "Titled Tuesday Blitz September 28 2021"]
[White "Pasti, Aron"]
[Black "Riehle, Marco"]
[WhiteFideId "785857"]
[BlackFideId "12904392"]
[WhiteElo "2080"]
[BlackElo "2462"]
[Result "1/2-1/2"]
[Round "07"]
[TimeControl "180+1"]
[Date "2021.09.28"]
[WhiteClock "0:00:05"]
[BlackClock "0:01:41"]

1. e4 {[%clk 0:03:00]}  e5 {[%clk 0:02:59]} 2. Nf3 {[%clk 0:03:01]}  Nf6 {[%clk 0:02:58]} 3. Nxe5 {[%clk 0:03:00]}  Nxe4 {[%clk 0:02:58]} 4. Qe2 {[%clk 0:02:55]}  Qe7 {[%clk 0:02:57]} 5. Qxe4 {[%clk 0:02:48]}  d6 {[%clk 0:02:56]} 6. d4 {[%clk 0:02:37]}  dxe5 {[%clk 0:02:55]} 7. Qxe5 {[%clk 0:02:37]}  Qxe5+ {[%clk 0:02:54]} 8. dxe5 {[%clk 0:02:38]}  Bf5 {[%clk 0:02:54]} 9. Bd3 {[%clk 0:02:36]}  Bxd3 {[%clk 0:02:50]} 10. cxd3 {[%clk 0:02:35]}  Nc6 {[%clk 0:02:50]} 11. Bf4 {[%clk 0:02:19]}  Nb4 {[%clk 0:02:49]} 12. Ke2 {[%clk 0:01:14]}  Nc2 {[%clk 0:02:48]} 13. Nc3 {[%clk 0:01:14]}  Nxa1 {[%clk 0:02:47]} 14. Rxa1 {[%clk 0:01:15]}  O-O-O {[%clk 0:02:47]} 15. Be3 {[%clk 0:01:12]}  b6 {[%clk 0:02:43]} 16. Rc1 {[%clk 0:01:07]}  Kb7 {[%clk 0:02:42]} 17. f4 {[%clk 0:00:58]}  Be7 {[%clk 0:02:40]} 18. d4 {[%clk 0:00:47]}  g5 {[%clk 0:02:36]} 19. fxg5 {[%clk 0:00:42]}  Rhg8 {[%clk 0:02:35]} 20. h4 {[%clk 0:00:42]}  h6 {[%clk 0:02:34]} 21. Rf1 {[%clk 0:00:40]}  Rdf8 {[%clk 0:02:31]} 22. Nd5 {[%clk 0:00:31]}  Bd8 {[%clk 0:02:29]} 23. gxh6 {[%clk 0:00:16]}  Rxg2+ {[%clk 0:02:28]} 24. Kd3 {[%clk 0:00:16]}  Rh2 {[%clk 0:02:29]} 25. e6 {[%clk 0:00:15]}  Rxh4 {[%clk 0:02:25]} 26. Rxf7 {[%clk 0:00:12]}  Re8 {[%clk 0:02:12]} 27. e7 {[%clk 0:00:12]}  Bxe7 {[%clk 0:02:13]} 28. Rxe7 {[%clk 0:00:12]}  Rd8 {[%clk 0:02:13]} 29. Nxc7 {[%clk 0:00:09]}  Kc6 {[%clk 0:02:09]} 30. Ne6 {[%clk 0:00:09]}  Rg8 {[%clk 0:02:09]} 31. Nf4 {[%clk 0:00:08]}  Rg3 {[%clk 0:02:08]} 32. Ke4 {[%clk 0:00:07]}  Rxh6 {[%clk 0:02:06]} 33. d5+ {[%clk 0:00:05]}  Kb5 {[%clk 0:02:06]} 34. Rxa7 {[%clk 0:00:04]}  Rh4 {[%clk 0:02:03]} 35. a4+ {[%clk 0:00:03]}  Kb4 {[%clk 0:02:03]} 36. Rb7 {[%clk 0:00:03]}  Kxa4 {[%clk 0:02:02]} 37. Rxb6 {[%clk 0:00:03]}  Rg8 {[%clk 0:02:00]} 38. Re6 {[%clk 0:00:02]}  Kb3 {[%clk 0:01:59]} 39. d6 {[%clk 0:00:02]}  Kxb2 {[%clk 0:02:00]} 40. d7 {[%clk 0:00:01]}  Rd8 {[%clk 0:01:59]} 41. Re7 {[%clk 0:00:02]}  Rh6 {[%clk 0:01:57]} 42. Ke5 {[%clk 0:00:02]}  Kc3 {[%clk 0:01:52]} 43. Bd4+ {[%clk 0:00:02]}  Kc4 {[%clk 0:01:51]} 44. Ne6 {[%clk 0:00:03]}  Rh5+ {[%clk 0:01:51]} 45. Kd6 {[%clk 0:00:03]}  Rd5+ {[%clk 0:01:50]} 46. Kc6 {[%clk 0:00:03]}  Ra8 {[%clk 0:01:46]} 47. Re8 {[%clk 0:00:03]}  Ra6+ {[%clk 0:01:45]} 48. Kb7 {[%clk 0:00:03]}  Rxe6 {[%clk 0:01:45]} 49. Rxe6 {[%clk 0:00:02]}  Rxd7+ {[%clk 0:01:45]} 50. Kc8 {[%clk 0:00:03]}  Rxd4 {[%clk 0:01:45]} 51. Rc6+ {[%clk 0:00:03]}  Kb5 {[%clk 0:01:45]} 52. Rc7 {[%clk 0:00:04]}  Rh4 {[%clk 0:01:44]} 53. Kb7 {[%clk 0:00:04]}  Rh6 {[%clk 0:01:44]} 54. Rf7 {[%clk 0:00:04]}  Rh5 {[%clk 0:01:44]} 55. Ka7 {[%clk 0:00:03]}  Kc6 {[%clk 0:01:42]} 56. Rf6+ {[%clk 0:00:03]}  Kb5 {[%clk 0:01:42]} 57. Rf7 {[%clk 0:00:04]}  Rc5 {[%clk 0:01:42]} 58. Rb7+ {[%clk 0:00:04]}  Ka5 {[%clk 0:01:42]} 59. Rh7 {[%clk 0:00:05]}  Rb5 {[%clk 0:01:42]} 60. Rb7 {[%clk 0:00:05]}  Rxb7+ {[%clk 0:01:41]} 61. Kxb7 {[%clk 0:00:05]} 1/2-1/2


[Site "https://www.chess.com"]

[Event "Titled Tuesday Blitz September 28 2021"]
[White "Perera Alfonso, Rene Humberto"]
[Black "Stribuk, Artiom"]
[WhiteFideId "3514722"]
[BlackFideId "13515659"]
[WhiteElo "2313"]
[BlackElo "2224"]
[Result "0-1"]
[Round "07"]
[TimeControl "180+1"]
[Date "2021.09.28"]
[WhiteClock "0:00:18"]
[BlackClock "0:00:31"]

1. e4 {[%clk 0:02:59]}  c5 {[%clk 0:02:58]} 2. Nf3 {[%clk 0:02:59]}  Nc6 {[%clk 0:02:58]} 3. d4 {[%clk 0:03:00]}  cxd4 {[%clk 0:02:59]} 4. Nxd4 {[%clk 0:03:00]}  Nf6 {[%clk 0:02:59]} 5. Nc3 {[%clk 0:03:00]}  e5 {[%clk 0:02:59]} 6. Ndb5 {[%clk 0:03:01]}  d6 {[%clk 0:02:59]} 7. Bg5 {[%clk 0:03:01]}  a6 {[%clk 0:02:56]} 8. Na3 {[%clk 0:03:01]}  b5 {[%clk 0:02:56]} 9. Bxf6 {[%clk 0:03:01]}  gxf6 {[%clk 0:02:57]} 10. Nd5 {[%clk 0:03:00]}  f5 {[%clk 0:02:57]} 11. Nxb5 {[%clk 0:03:00]}  axb5 {[%clk 0:02:52]} 12. Bxb5 {[%clk 0:03:00]}  Bd7 {[%clk 0:02:47]} 13. exf5 {[%clk 0:02:59]}  Bg7 {[%clk 0:02:47]} 14. O-O {[%clk 0:02:58]}  O-O {[%clk 0:02:39]} 15. Bd3 {[%clk 0:02:53]}  Re8 {[%clk 0:02:29]} 16. Qh5 {[%clk 0:02:51]}  e4 {[%clk 0:02:25]} 17. Bc4 {[%clk 0:02:42]}  Re5 {[%clk 0:02:17]} 18. Ne3 {[%clk 0:02:15]}  Qf6 {[%clk 0:01:59]} 19. Rad1 {[%clk 0:02:01]}  Bxf5 {[%clk 0:01:50]} 20. Nxf5 {[%clk 0:01:43]}  Rxf5 {[%clk 0:01:50]} 21. Qe2 {[%clk 0:01:40]}  Re8 {[%clk 0:01:40]} 22. c3 {[%clk 0:01:22]}  Qg5 {[%clk 0:01:27]} 23. Rxd6 {[%clk 0:01:08]}  Ne5 {[%clk 0:01:20]} 24. Bb3 {[%clk 0:01:00]}  Nf3+ {[%clk 0:01:15]} 25. Kh1 {[%clk 0:01:00]}  Qf4 {[%clk 0:01:04]} 26. gxf3 {[%clk 0:00:52]}  Qxd6 {[%clk 0:01:04]} 27. fxe4 {[%clk 0:00:50]}  Rf4 {[%clk 0:01:01]} 28. f3 {[%clk 0:00:45]}  Kh8 {[%clk 0:01:02]} 29. Qb5 {[%clk 0:00:40]}  Rg8 {[%clk 0:00:56]} 30. Rd1 {[%clk 0:00:25]}  Qh6 {[%clk 0:00:52]} 31. Rd5 {[%clk 0:00:23]}  Rh4 {[%clk 0:00:48]} 32. Qe2 {[%clk 0:00:21]}  Be5 {[%clk 0:00:32]} 33. Rxe5 {[%clk 0:00:20]}  Rxh2+ {[%clk 0:00:32]} 34. Qxh2 {[%clk 0:00:18]}  Qc1+ {[%clk 0:00:31]} 0-1


[Site "https://www.chess.com"]

[Event "Titled Tuesday Blitz September 28 2021"]
[White "Petriashvili, Nikoloz"]
[Black "Garrido Outon, Alex"]
[WhiteFideId "13611216"]
[BlackFideId "24516279"]
[WhiteElo "2430"]
[BlackElo "2131"]
[Result "1/2-1/2"]
[Round "07"]
[TimeControl "180+1"]
[Date "2021.09.28"]
[WhiteClock "0:00:09"]
[BlackClock "0:00:06"]

1. e4 {[%clk 0:03:00]}  c6 {[%clk 0:03:00]} 2. d4 {[%clk 0:03:01]}  g6 {[%clk 0:02:59]} 3. Nc3 {[%clk 0:03:00]}  d5 {[%clk 0:03:00]} 4. Bf4 {[%clk 0:02:58]}  Bg7 {[%clk 0:02:55]} 5. e5 {[%clk 0:02:58]}  h5 {[%clk 0:02:47]} 6. h3 {[%clk 0:02:58]}  Nh6 {[%clk 0:02:47]} 7. Nf3 {[%clk 0:02:58]}  Nd7 {[%clk 0:02:45]} 8. Qd2 {[%clk 0:02:58]}  Nb6 {[%clk 0:02:42]} 9. O-O-O {[%clk 0:02:58]}  Bf5 {[%clk 0:02:24]} 10. Be2 {[%clk 0:02:55]}  Nc4 {[%clk 0:02:14]} 11. Bxc4 {[%clk 0:02:54]}  dxc4 {[%clk 0:02:15]} 12. Kb1 {[%clk 0:02:52]}  b5 {[%clk 0:02:08]} 13. d5 {[%clk 0:02:36]}  b4 {[%clk 0:02:06]} 14. Na4 {[%clk 0:02:37]}  b3 {[%clk 0:01:43]} 15. Nd4 {[%clk 0:02:36]}  bxc2+ {[%clk 0:01:02]} 16. Nxc2 {[%clk 0:02:35]}  Qxd5 {[%clk 0:01:02]} 17. Qxd5 {[%clk 0:02:25]}  cxd5 {[%clk 0:01:03]} 18. Rxd5 {[%clk 0:02:25]}  O-O {[%clk 0:01:02]} 19. Re1 {[%clk 0:02:19]}  Rfd8 {[%clk 0:01:00]} 20. Nc3 {[%clk 0:02:18]}  Bd3 {[%clk 0:00:54]} 21. Kc1 {[%clk 0:02:15]}  a5 {[%clk 0:00:48]} 22. Ne3 {[%clk 0:02:10]}  Nf5 {[%clk 0:00:47]} 23. Nxf5 {[%clk 0:02:04]}  Bxf5 {[%clk 0:00:46]} 24. Bg5 {[%clk 0:01:55]}  f6 {[%clk 0:00:45]} 25. exf6 {[%clk 0:01:55]}  exf6 {[%clk 0:00:46]} 26. Bf4 {[%clk 0:01:51]}  Bd3 {[%clk 0:00:42]} 27. Re7 {[%clk 0:01:47]}  f5 {[%clk 0:00:36]} 28. Be5 {[%clk 0:01:42]}  Bxe5 {[%clk 0:00:27]} 29. Rdxe5 {[%clk 0:01:43]}  Bf1 {[%clk 0:00:20]} 30. R5e6 {[%clk 0:01:40]}  Bxg2 {[%clk 0:00:17]} 31. Rxg6+ {[%clk 0:01:39]}  Kf8 {[%clk 0:00:17]} 32. Rc7 {[%clk 0:01:24]}  Bxh3 {[%clk 0:00:17]} 33. Rh6 {[%clk 0:01:20]}  Kg8 {[%clk 0:00:17]} 34. Rxh5 {[%clk 0:01:17]}  Bg4 {[%clk 0:00:17]} 35. Rg5+ {[%clk 0:01:17]}  Kh8 {[%clk 0:00:17]} 36. Rgg7 {[%clk 0:01:16]}  Ra6 {[%clk 0:00:17]} 37. Rh7+ {[%clk 0:01:11]}  Kg8 {[%clk 0:00:17]} 38. Rcg7+ {[%clk 0:01:11]}  Kf8 {[%clk 0:00:17]} 39. Rc7 {[%clk 0:01:11]}  Kg8 {[%clk 0:00:16]} 40. Rhg7+ {[%clk 0:01:08]}  Kh8 {[%clk 0:00:16]} 41. a4 {[%clk 0:00:54]}  Rh6 {[%clk 0:00:15]} 42. Kb1 {[%clk 0:00:54]}  Rh1+ {[%clk 0:00:15]} 43. Ka2 {[%clk 0:00:54]}  Rh2 {[%clk 0:00:15]} 44. Ra7 {[%clk 0:00:25]}  Rxf2 {[%clk 0:00:15]} 45. Rh7+ {[%clk 0:00:25]}  Kg8 {[%clk 0:00:15]} 46. Rag7+ {[%clk 0:00:25]}  Kf8 {[%clk 0:00:15]} 47. Ra7 {[%clk 0:00:25]}  Kg8 {[%clk 0:00:16]} 48. Rhb7 {[%clk 0:00:23]}  Rfd2 {[%clk 0:00:08]} 49. Rxa5 {[%clk 0:00:21]}  R2d7 {[%clk 0:00:09]} 50. Rb6 {[%clk 0:00:18]}  Rg7 {[%clk 0:00:08]} 51. Rf6 {[%clk 0:00:16]}  Rf8 {[%clk 0:00:08]} 52. Rxf8+ {[%clk 0:00:12]}  Kxf8 {[%clk 0:00:09]} 53. Nd5 {[%clk 0:00:13]}  Rd7 {[%clk 0:00:09]} 54. Nf4 {[%clk 0:00:13]}  Kf7 {[%clk 0:00:07]} 55. Ka3 {[%clk 0:00:07]}  Rd4 {[%clk 0:00:07]} 56. Nd5 {[%clk 0:00:06]}  f4 {[%clk 0:00:04]} 57. Ra7+ {[%clk 0:00:05]}  Ke6 {[%clk 0:00:03]} 58. Nc7+ {[%clk 0:00:04]}  Ke5 {[%clk 0:00:04]} 59. Ra8 {[%clk 0:00:04]}  f3 {[%clk 0:00:04]} 60. Rf8 {[%clk 0:00:04]}  Rf4 {[%clk 0:00:03]} 61. Re8+ {[%clk 0:00:05]}  Kd4 {[%clk 0:00:03]} 62. Ne6+ {[%clk 0:00:05]}  Bxe6 {[%clk 0:00:02]} 63. Rxe6 {[%clk 0:00:05]}  f2 {[%clk 0:00:03]} 64. Rd6+ {[%clk 0:00:06]}  Kc5 {[%clk 0:00:03]} 65. Rd8 {[%clk 0:00:06]}  f1=Q {[%clk 0:00:03]} 66. Rc8+ {[%clk 0:00:06]}  Kd4 {[%clk 0:00:03]} 67. Rd8+ {[%clk 0:00:07]}  Ke3 {[%clk 0:00:03]} 68. Kb4 {[%clk 0:00:07]}  Qe1+ {[%clk 0:00:03]} 69. Kc5 {[%clk 0:00:07]}  Qe2 {[%clk 0:00:03]} 70. Re8+ {[%clk 0:00:07]}  Kd3 {[%clk 0:00:04]} 71. Rxe2 {[%clk 0:00:06]}  Kxe2 {[%clk 0:00:05]} 72. a5 {[%clk 0:00:07]}  Kd2 {[%clk 0:00:04]} 73. a6 {[%clk 0:00:08]}  Kc2 {[%clk 0:00:04]} 74. a7 {[%clk 0:00:06]}  Rf8 {[%clk 0:00:05]} 75. Kxc4 {[%clk 0:00:05]}  Ra8 {[%clk 0:00:05]} 76. b4 {[%clk 0:00:06]}  Rxa7 {[%clk 0:00:06]} 77. b5 {[%clk 0:00:07]}  Rc7+ {[%clk 0:00:05]} 78. Kb4 {[%clk 0:00:07]}  Kd3 {[%clk 0:00:05]} 79. b6 {[%clk 0:00:08]}  Rc1 {[%clk 0:00:05]} 80. Kb5 {[%clk 0:00:08]}  Kd4 {[%clk 0:00:05]} 81. b7 {[%clk 0:00:08]}  Rb1+ {[%clk 0:00:06]} 82. Kc6 {[%clk 0:00:08]}  Rxb7 {[%clk 0:00:06]} 83. Kxb7 {[%clk 0:00:09]} 1/2-1/2


[Site "https://www.chess.com"]